Workbook

Sheet Výsledky PO
A1: Hospodařené příspěvkových organizací města Příbora v roce 2021
A3: údaje v Kč
A4: Mateřská škola Kamarád, Příbor, Frenštátská 1370 | B4: výnosy-náklady provozu/zřizovatel | D4: výnosy-náklady/KÚ + dotace | G4: Celkem
B5: HČ | C5: VČ | D5: HČ
A6: Výnosy | B6: 2638682.88 | C6: 4200 | D6: 14400955.26 | G6: =SUM(B6:F6) -> 17043838.14
A7: Náklady | B7: 2640882.88 | C7: 2000 | D7: 14400955.26 | G7: =SUM(B7:F7) -> 17043838.14
A8: Hospodářský výsledek | B8: =SUM(B6-B7) -> -2200 | C8: =SUM(C6-C7) -> 2200 | D8: =SUM(E6-E7) -> 0 | G8: =SUM(G6-G7) -> 0
A10: Mateřská škol Příbor, Pionýrů 1519, okres Nový Jičín, příspěvková organizace | B10: výnosy-náklady provozu/zřizovatel | D10: výnosy-náklady/KÚ + dotace | G10: Celkem
B11: HČ | C11: VČ | D11: HČ
A12: Výnosy | B12: 1419920.27 | C12: 0 | D12: 6398916.95 | G12: =SUM(B12:F12) -> 7818837.22
A13: Náklady | B13: 1308617.86 | C13: 0 | D13: 6398916.95 | G13: =SUM(B13:F13) -> 7707534.81
A14: Hospodářský výsledek | B14: =SUM(B12-B13) -> 111302.41 | C14: =SUM(C12-C13) -> 0 | D14: =SUM(E12-E13) -> 0 | G14: =SUM(G12-G13) -> 111302.41
A16: Základní škola Příbor, Jičínská 486, okres Nový Jičín | B16: výnosy-náklady provozu/zřizovatel | D16: výnosy-náklady/KÚ + dotace | G16: Celkem
B17: HČ | C17: VČ | D17: HČ
A18: Výnosy | B18: 3457864.9 | C18: 14560 | D18: 30436950.02 | G18: =SUM(B18:F18) -> 33909374.92
A19: Náklady | B19: 3388163.85 | C19: 4239 | D19: 30436950.02 | G19: =SUM(B19:F19) -> 33829352.87
A20: Hospodářský výsledek | B20: =SUM(B18-B19) -> 69701.05 | C20: =SUM(C18-C19) -> 10321 | D20: =SUM(E18-E19) -> 0 | G20: =SUM(G18-G19) -> 80022.05
A22: Základní škola Npor. Loma Příbor Školní 1510 okres Nový Jičín, příspěvková organizace | B22: výnosy-náklady provozu/zřizovatel | D22: výnosy-náklady/KÚ + dotace | G22: Celkem
B23: HČ | C23: VČ | D23: HČ
A24: Výnosy | B24: 5598265.69 | C24: 1028487 | D24: 36140421.18 | G24: =SUM(B24:F24) -> 42767173.87
A25: Náklady | B25: 5432082.41 | C25: 906769.97 | D25: 36140421.18 | G25: =SUM(B25:F25) -> 42479273.56
A26: Hospodářský výsledek | B26: =SUM(B24-B25) -> 166183.28 | C26: =SUM(C24-C25) -> 121717.03 | D26: =SUM(E24-E25) -> 0 | G26: =SUM(G24-G25) -> 287900.31
A28: Školní jídelna Komenského, Příbor, ul. Komenského čp. 458 | B28: výnosy-náklady provozu/zřizovatel | D28: výnosy-náklady/KÚ + dotace | G28: Celkem
B29: HČ | C29: VČ | D29: HČ
A30: Výnosy | B30: 2635744.67 | C30: 3941913.79 | D30: 4048506 | G30: =SUM(B30:F30) -> 10626164.46
A31: Náklady | B31: 2635744.67 | C31: 3851246.69 | D31: 4048506 | G31: =SUM(B31:F31) -> 10535497.36
A32: Hospodářský výsledek | B32: =SUM(B30-B31) -> 0 | C32: =SUM(C30-C31) -> 90667.1 | D32: =SUM(E30-E31) -> 0 | G32: =SUM(G30-G31) -> 90667.1
A35: LUNA PŘÍBOR, středisko volného času, příspěvková organizace | B35: výnosy-náklady provozu/zřizovatel | D35: výnosy-náklady/KÚ + dotace | G35: Celkem
B36: HČ | C36: VČ | D36: HČ
A37: Výnosy | B37: 1239474 | C37: 0 | D37: 3685047 | G37: =SUM(B37:F37) -> 4924521
A38: Náklady | B38: 1178375.69 | C38: 0 | D38: 3685047 | G38: =SUM(B38:F38) -> 4863422.69
A39: Hospodářský výsledek | B39: =SUM(B37-B38) -> 61098.31 | C39: =SUM(C37-C38) -> 0 | D39: =SUM(E37-E38) -> 0 | G39: =SUM(G37-G38) -> 61098.31
A41: Technické služby města Příbora, příspěvková organizace | B41: výnosy-náklady provozu/zřizovatel | D41: výnosy-náklady/KÚ + dotace | G41: Celkem
B42: HČ | C42: VČ | D42: HČ
A43: Výnosy | B43: 34210731.25 | C43: 3321299.44 | G43: =SUM(B43:F43) -> 37532030.69
A44: Náklady | B44: 34197239.54 | C44: 2787675.57 | G44: =SUM(B44:F44) -> 36984915.11
A45: Hospodářský výsledek | B45: =SUM(B43-B44) -> 13491.71 | C45: =SUM(C43-C44) -> 533623.87 | D45: =SUM(E43-E44) -> 0 | G45: =SUM(G43-G44) -> 547115.58
